[Event "*** Titled Tuesday Blitz"]
[Site "Chess.com"]
[Date "2018.09.04"]
[Round "1"]
[White "Kriari"]
[Black "Alopekos"]
[Result "1-0"]
[WhiteElo "2831"]
[BlackElo "2430"]
[TimeControl "180+2"]
[EndTime "13:40:59 PDT"]
[Termination "Kriari won by resignation"]

1. e4 {[%clk 0:03:01.9]} 1... e5 {[%clk 0:02:59.7]} 2. Nf3 {[%clk 0:03:03.2]}
2... Nc6 {[%clk 0:02:59.9]} 3. Bc4 {[%clk 0:03:04.8]} 3... Nf6 {[%clk
0:03:00.7]} 4. d3 {[%clk 0:03:06]} 4... Be7 {[%clk 0:03:01.4]} 5. O-O {[%clk
0:03:07.2]} 5... O-O {[%clk 0:03:03]} 6. a4 {[%clk 0:03:08.1]} 6... d6 {[%clk
0:03:03.7]} 7. c3 {[%clk 0:03:08.4]} 7... Kh8 {[%clk 0:03:02.4]} 8. Ng5 {[%clk
0:03:05.9]} 8... Qe8 {[%clk 0:02:48]} 9. f4 {[%clk 0:03:06.4]} 9... h6 {[%clk
0:02:41.3]} 10. Nf3 {[%clk 0:03:06]} 10... exf4 {[%clk 0:02:11.8]} 11. Bxf4
{[%clk 0:03:07.9]} 11... Nh5 {[%clk 0:02:08.7]} 12. Be3 {[%clk 0:03:03.1]} 12...
f5 {[%clk 0:02:08.8]} 13. Nbd2 {[%clk 0:02:58.7]} 13... f4 {[%clk 0:01:33.6]}
14. Bf2 {[%clk 0:02:59.4]} 14... g5 {[%clk 0:01:33.2]} 15. Nd4 {[%clk
0:02:37.7]} 15... Ne5 {[%clk 0:01:25.4]} 16. Be6 {[%clk 0:02:38.6]} 16... Nxd3
{[%clk 0:01:07.4]} 17. Bxc8 {[%clk 0:02:38.7]} 17... Nxf2 {[%clk 0:00:59.9]} 18.
Rxf2 {[%clk 0:02:38.9]} 18... Rxc8 {[%clk 0:01:00.5]} 19. Nf5 {[%clk 0:02:34]}
19... Ng7 {[%clk 0:00:21.8]} 20. Nxh6 {[%clk 0:02:33.8]} 20... d5 {[%clk
0:00:13.5]} 21. Kh1 {[%clk 0:02:35.2]} 21... dxe4 {[%clk 0:00:07.9]} 22. Nxe4
{[%clk 0:02:35.4]} 22... Qg6 {[%clk 0:00:09]} 23. Ng4 {[%clk 0:02:20]} 23...
Qxe4 {[%clk 0:00:05.2]} 24. Re2 {[%clk 0:02:21.4]} 24... Qg6 {[%clk 0:00:02.7]}
25. Rxe7 {[%clk 0:02:22.4]} 25... Nf5 {[%clk 0:00:04]} 26. Ne5 {[%clk
0:02:22.2]} 26... Qh6 {[%clk 0:00:03]} 27. Nf7+ {[%clk 0:02:23.4]} 27... Rxf7
{[%clk 0:00:04.1]} 28. Rxf7 {[%clk 0:02:25.3]} 28... Ng3+ {[%clk 0:00:05.1]} 29.
Kg1 {[%clk 0:02:26.8]} 29... Qb6+ {[%clk 0:00:05.9]} 30. Qd4+ {[%clk 0:02:28.4]}
30... Qxd4+ {[%clk 0:00:03.6]} 31. cxd4 {[%clk 0:02:30.3]} 31... Ne2+ {[%clk
0:00:04.9]} 32. Kf2 {[%clk 0:02:31.9]} 32... Nxd4 {[%clk 0:00:06.8]} 33. Rd1
{[%clk 0:02:32.7]} 33... c5 {[%clk 0:00:07.5]} 34. Rxb7 {[%clk 0:02:32]} 34...
a5 {[%clk 0:00:06.7]} 35. Re1 {[%clk 0:02:32]} 1-0

[Event "*** Titled Tuesday Blitz"]
[Site "Chess.com"]
[Date "2018.09.04"]
[Round "1"]
[White "Synctel"]
[Black "Smashyou104"]
[Result "0-1"]
[WhiteElo "1911"]
[BlackElo "2467"]
[TimeControl "180+2"]
[EndTime "13:41:03 PDT"]
[Termination "Smashyou104 won by resignation"]

1. e4 {[%clk 0:00:25.8]} 1... c6 {[%clk 0:02:59.3]} 2. d4 {[%clk 0:00:26.6]}
2... d5 {[%clk 0:02:59]} 3. e5 {[%clk 0:00:28.5]} 3... c5 {[%clk 0:03:00.1]} 4.
dxc5 {[%clk 0:00:28.7]} 4... e6 {[%clk 0:03:01.4]} 5. Be3 {[%clk 0:00:28.2]}
5... Nd7 {[%clk 0:03:01.7]} 6. Nf3 {[%clk 0:00:29.7]} 6... Bxc5 {[%clk 0:03:02]}
7. Bxc5 {[%clk 0:00:29.6]} 7... Nxc5 {[%clk 0:03:03.9]} 8. Be2 {[%clk
0:00:29.9]} 8... Ne7 {[%clk 0:03:03.8]} 9. O-O {[%clk 0:00:26.7]} 9... O-O
{[%clk 0:03:04.6]} 10. Nc3 {[%clk 0:00:24.2]} 10... Ng6 {[%clk 0:03:04.7]} 11.
Re1 {[%clk 0:00:24]} 11... Bd7 {[%clk 0:03:03.3]} 12. Bf1 {[%clk 0:00:25.3]}
12... Rc8 {[%clk 0:03:03.9]} 13. g3 {[%clk 0:00:25.8]} 13... Qb6 {[%clk
0:03:05.2]} 14. Rb1 {[%clk 0:00:26.4]} 14... Rfd8 {[%clk 0:03:05.1]} 15. Qc1
{[%clk 0:00:26.7]} 15... Na4 {[%clk 0:03:04.7]} 16. Nxa4 {[%clk 0:00:26.9]}
16... Bxa4 {[%clk 0:03:06.6]} 17. c3 {[%clk 0:00:26.6]} 17... Ne7 {[%clk
0:03:07.2]} 18. Qf4 {[%clk 0:00:27.2]} 18... Bc2 {[%clk 0:03:01.7]} 19. Rbc1
{[%clk 0:00:27.2]} 19... Bg6 {[%clk 0:03:03.1]} 20. Qd2 {[%clk 0:00:23.1]} 20...
Nc6 {[%clk 0:03:01]} 21. Bd3 {[%clk 0:00:22.8]} 21... Be4 {[%clk 0:02:37.5]} 22.
Ng5 {[%clk 0:00:19.8]} 22... Bxd3 {[%clk 0:02:33.6]} 23. Qxd3 {[%clk 0:00:21.7]}
23... g6 {[%clk 0:02:35.4]} 24. Nf3 {[%clk 0:00:22.2]} 24... Qxb2 {[%clk
0:02:33.5]} 25. Rb1 {[%clk 0:00:22.3]} 25... Qxa2 {[%clk 0:02:34.9]} 26. Rxb7
{[%clk 0:00:23.4]} 26... Qc4 {[%clk 0:02:32]} 27. Qe3 {[%clk 0:00:24]} 27... Rb8
{[%clk 0:02:19]} 28. Reb1 {[%clk 0:00:22.2]} 28... Qe4 {[%clk 0:02:14.2]} 29.
Rxb8 {[%clk 0:00:15.3]} 29... Nxb8 {[%clk 0:02:04.8]} 30. Qg5 {[%clk 0:00:14.6]}
30... Qxb1+ {[%clk 0:02:04.3]} 31. Kg2 {[%clk 0:00:15]} 31... Rc8 {[%clk
0:02:03.5]} 0-1

[Event "*** Titled Tuesday Blitz"]
[Site "Chess.com"]
[Date "2018.09.04"]
[Round "1"]
[White "Evandro_Barbosa"]
[Black "indfraeng"]
[Result "1-0"]
[WhiteElo "2466"]
[BlackElo "1956"]
[TimeControl "180+2"]
[EndTime "13:41:14 PDT"]
[Termination "Evandro_Barbosa won by checkmate"]

1. e4 {[%clk 0:03:01.5]} 1... c6 {[%clk 0:02:59.9]} 2. d4 {[%clk 0:03:01.8]}
2... d5 {[%clk 0:03:00.9]} 3. exd5 {[%clk 0:03:03.7]} 3... cxd5 {[%clk
0:03:01.3]} 4. Bd3 {[%clk 0:03:05.2]} 4... Nc6 {[%clk 0:03:00.5]} 5. c3 {[%clk
0:03:06.6]} 5... Qc7 {[%clk 0:03:01.5]} 6. Ne2 {[%clk 0:03:06.7]} 6... Bg4
{[%clk 0:02:59.5]} 7. O-O {[%clk 0:03:07.3]} 7... Nf6 {[%clk 0:02:58.6]} 8. Qe1
{[%clk 0:03:08]} 8... e5 {[%clk 0:02:51.9]} 9. dxe5 {[%clk 0:03:05.1]} 9... Nxe5
{[%clk 0:02:52.5]} 10. Bb5+ {[%clk 0:03:05.8]} 10... Nfd7 {[%clk 0:02:51.6]} 11.
Nd4 {[%clk 0:03:03.8]} 11... Bd6 {[%clk 0:02:52.1]} 12. f4 {[%clk 0:03:01.8]}
12... O-O {[%clk 0:02:51.5]} 13. fxe5 {[%clk 0:03:02]} 13... Bxe5 {[%clk
0:02:50.1]} 14. Qh4 {[%clk 0:03:02.2]} 14... Be6 {[%clk 0:02:44.6]} 15. Bf4
{[%clk 0:03:00.1]} 15... Bxf4 {[%clk 0:02:38.6]} 16. Qxf4 {[%clk 0:03:02]} 16...
Qxf4 {[%clk 0:02:39.5]} 17. Rxf4 {[%clk 0:03:01.3]} 17... Ne5 {[%clk 0:02:38.4]}
18. Nd2 {[%clk 0:02:55.2]} 18... g5 {[%clk 0:02:33.2]} 19. Rff1 {[%clk
0:02:55.4]} 19... a6 {[%clk 0:02:30.9]} 20. Be2 {[%clk 0:02:55.5]} 20... Nc6
{[%clk 0:02:30.1]} 21. Nxc6 {[%clk 0:02:53.7]} 21... bxc6 {[%clk 0:02:30.5]} 22.
Nb3 {[%clk 0:02:55.6]} 22... Rac8 {[%clk 0:02:26.9]} 23. Nc5 {[%clk 0:02:54.4]}
23... a5 {[%clk 0:02:27.2]} 24. a4 {[%clk 0:02:54.7]} 24... Rfe8 {[%clk
0:02:23.7]} 25. Rfe1 {[%clk 0:02:54.7]} 25... Bf5 {[%clk 0:02:24]} 26. Bd3
{[%clk 0:02:54.4]} 26... Bxd3 {[%clk 0:02:23.4]} 27. Nxd3 {[%clk 0:02:56.3]}
27... f6 {[%clk 0:02:17.6]} 28. Rxe8+ {[%clk 0:02:55.5]} 28... Rxe8 {[%clk
0:02:18.3]} 29. Re1 {[%clk 0:02:57.4]} 29... Rb8 {[%clk 0:02:17.5]} 30. b4
{[%clk 0:02:58.1]} 30... d4 {[%clk 0:02:15.8]} 31. cxd4 {[%clk 0:02:56.6]} 31...
axb4 {[%clk 0:02:15.6]} 32. Rb1 {[%clk 0:02:58]} 32... b3 {[%clk 0:02:15.4]} 33.
Rb2 {[%clk 0:02:56.8]} 33... Rd8 {[%clk 0:02:13.7]} 34. Rxb3 {[%clk 0:02:57.5]}
34... Rxd4 {[%clk 0:02:14.4]} 35. Ra3 {[%clk 0:02:59]} 35... Rd8 {[%clk
0:02:12.4]} 36. a5 {[%clk 0:02:59.7]} 36... Kf7 {[%clk 0:02:08.6]} 37. a6 {[%clk
0:03:00.6]} 37... Ke7 {[%clk 0:02:09.4]} 38. a7 {[%clk 0:02:59.3]} 38... Ra8
{[%clk 0:02:10.2]} 39. Kf2 {[%clk 0:02:58.7]} 39... Kd6 {[%clk 0:02:08.9]} 40.
Ke3 {[%clk 0:02:52.6]} 40... f5 {[%clk 0:02:07]} 41. Kd4 {[%clk 0:02:53]} 41...
f4 {[%clk 0:02:02.5]} 42. Ra5 {[%clk 0:02:50.6]} 42... h6 {[%clk 0:02:02.7]} 43.
Kc4 {[%clk 0:02:40.4]} 43... Ke6 {[%clk 0:01:56.8]} 44. Ra6 {[%clk 0:02:39.4]}
44... Kd7 {[%clk 0:01:51.9]} 45. Ne5+ {[%clk 0:02:39.3]} 45... Kc7 {[%clk
0:01:51.1]} 46. Rxc6+ {[%clk 0:02:39.3]} 46... Kb7 {[%clk 0:01:52]} 47. Rxh6
{[%clk 0:02:40]} 47... Rxa7 {[%clk 0:01:52.6]} 48. Rh7+ {[%clk 0:02:41]} 48...
Ka6 {[%clk 0:01:52.8]} 49. Rxa7+ {[%clk 0:02:42.9]} 49... Kxa7 {[%clk
0:01:54.1]} 50. Kd4 {[%clk 0:02:44.3]} 50... Kb6 {[%clk 0:01:55]} 51. Ke4 {[%clk
0:02:45.3]} 51... Kc5 {[%clk 0:01:56.8]} 52. Kf5 {[%clk 0:02:46.5]} 52... Kd5
{[%clk 0:01:58.4]} 53. Nf3 {[%clk 0:02:47]} 53... g4 {[%clk 0:01:57.8]} 54. Kxg4
{[%clk 0:02:47.3]} 54... Ke4 {[%clk 0:01:59.7]} 55. h4 {[%clk 0:02:47.7]} 55...
Ke3 {[%clk 0:02:00]} 56. h5 {[%clk 0:02:49.1]} 56... Kf2 {[%clk 0:02:00.8]} 57.
Kxf4 {[%clk 0:02:50.4]} 57... Kxg2 {[%clk 0:02:00.9]} 58. h6 {[%clk 0:02:51.5]}
58... Kh3 {[%clk 0:02:02]} 59. h7 {[%clk 0:02:50.4]} 59... Kg2 {[%clk
0:02:03.4]} 60. h8=Q {[%clk 0:02:51.2]} 60... Kf1 {[%clk 0:02:04.9]} 61. Qh1+
{[%clk 0:02:50]} 61... Ke2 {[%clk 0:02:06.8]} 62. Qe1+ {[%clk 0:02:48.6]} 62...
Kd3 {[%clk 0:02:08.7]} 63. Qe3+ {[%clk 0:02:49.6]} 63... Kc4 {[%clk 0:02:10.6]}
64. Qd2 {[%clk 0:02:49.4]} 64... Kc5 {[%clk 0:02:10.7]} 65. Qd3 {[%clk
0:02:50.5]} 65... Kc6 {[%clk 0:02:11.6]} 66. Qd4 {[%clk 0:02:51.5]} 66... Kc7
{[%clk 0:02:13.5]} 67. Qd5 {[%clk 0:02:52.4]} 67... Kc8 {[%clk 0:02:15.4]} 68.
Qf7 {[%clk 0:02:53.1]} 68... Kb8 {[%clk 0:02:16]} 69. Ke5 {[%clk 0:02:54.4]}
69... Ka8 {[%clk 0:02:17.3]} 70. Kd6 {[%clk 0:02:55.6]} 70... Kb8 {[%clk
0:02:19]} 71. Kc6 {[%clk 0:02:56.4]} 71... Ka8 {[%clk 0:02:20.5]} 72. Qb7#
{[%clk 0:02:44.8]} 1-0

[Event "*** Titled Tuesday Blitz"]
[Site "Chess.com"]
[Date "2018.09.04"]
[Round "1"]
[White "KhalilMousavi77"]
[Black "Mistheoretical"]
[Result "1-0"]
[WhiteElo "2755"]
[BlackElo "2403"]
[TimeControl "180+2"]
[EndTime "13:41:22 PDT"]
[Termination "KhalilMousavi77 won by resignation"]

1. e4 {[%clk 0:03:01.6]} 1... e6 {[%clk 0:03:00.9]} 2. d4 {[%clk 0:03:01.8]}
2... d5 {[%clk 0:03:02.8]} 3. Nc3 {[%clk 0:02:59.9]} 3... Bb4 {[%clk 0:03:03.6]}
4. Ne2 {[%clk 0:02:58.5]} 4... Nf6 {[%clk 0:02:58.1]} 5. e5 {[%clk 0:02:47.2]}
5... Nfd7 {[%clk 0:02:57.5]} 6. f4 {[%clk 0:02:44.7]} 6... b6 {[%clk 0:02:55.9]}
7. a3 {[%clk 0:02:38.1]} 7... Bf8 {[%clk 0:02:52.6]} 8. Be3 {[%clk 0:02:30.7]}
8... Ba6 {[%clk 0:02:51.5]} 9. Ng3 {[%clk 0:02:26.1]} 9... Bxf1 {[%clk
0:02:42.3]} 10. Rxf1 {[%clk 0:02:27.2]} 10... g6 {[%clk 0:02:43.3]} 11. f5
{[%clk 0:02:15.6]} 11... gxf5 {[%clk 0:02:35.7]} 12. Qh5 {[%clk 0:02:15.4]}
12... c6 {[%clk 0:02:14.2]} 13. O-O-O {[%clk 0:02:06.6]} 13... Na6 {[%clk
0:02:14.9]} 14. Nxf5 {[%clk 0:02:01.6]} 14... exf5 {[%clk 0:01:41.1]} 15. e6
{[%clk 0:02:00.4]} 15... Qe7 {[%clk 0:01:27.2]} 16. exd7+ {[%clk 0:02:00.8]}
16... Kxd7 {[%clk 0:01:24]} 17. Rde1 {[%clk 0:01:55.6]} 17... Qe6 {[%clk
0:01:04.4]} 18. Rxf5 {[%clk 0:01:47.3]} 18... Re8 {[%clk 0:00:54.3]} 19. Rxf7+
{[%clk 0:01:45]} 19... Re7 {[%clk 0:00:51.7]} 20. Rxe7+ {[%clk 0:01:41.2]} 20...
Bxe7 {[%clk 0:00:53.6]} 21. Bf2 {[%clk 0:01:39.2]} 21... Qf6 {[%clk 0:00:51.1]}
22. Qg4+ {[%clk 0:01:36.3]} 22... Kd8 {[%clk 0:00:48.9]} 23. Rxe7 {[%clk
0:01:16.7]} 1-0

[Event "*** Titled Tuesday Blitz"]
[Site "Chess.com"]
[Date "2018.09.04"]
[Round "1"]
[White "pouya21"]
[Black "Pilopa"]
[Result "1-0"]
[WhiteElo "2651"]
[BlackElo "2315"]
[TimeControl "180+2"]
[EndTime "13:41:22 PDT"]
[Termination "pouya21 won by resignation"]

1. e4 {[%clk 0:03:01.5]} 1... Nc6 {[%clk 0:03:00.6]} 2. d4 {[%clk 0:03:00.8]}
2... d5 {[%clk 0:03:01.6]} 3. e5 {[%clk 0:03:01.8]} 3... f6 {[%clk 0:03:02.6]}
4. f4 {[%clk 0:03:02.7]} 4... Nh6 {[%clk 0:03:03.5]} 5. Nf3 {[%clk 0:03:02.7]}
5... Bf5 {[%clk 0:03:04.3]} 6. Be3 {[%clk 0:02:58.8]} 6... e6 {[%clk 0:03:04.1]}
7. Nbd2 {[%clk 0:02:59.8]} 7... Be7 {[%clk 0:03:02.2]} 8. Bb5 {[%clk 0:03:00.5]}
8... O-O {[%clk 0:03:02.1]} 9. O-O {[%clk 0:02:59.5]} 9... Ng4 {[%clk
0:02:56.1]} 10. Re1 {[%clk 0:02:50]} 10... Nb4 {[%clk 0:02:50.1]} 11. Ba4 {[%clk
0:02:43.5]} 11... c5 {[%clk 0:02:47.4]} 12. a3 {[%clk 0:02:37.6]} 12... Nc6
{[%clk 0:02:46.9]} 13. c3 {[%clk 0:02:31.3]} 13... Qb6 {[%clk 0:02:38.8]} 14.
Bxc6 {[%clk 0:02:16.7]} 14... bxc6 {[%clk 0:02:15.4]} 15. dxc5 {[%clk
0:01:57.2]} 15... Nxe3 {[%clk 0:02:06.9]} 16. cxb6 {[%clk 0:01:54.8]} 16... Nxd1
{[%clk 0:02:07.1]} 17. Raxd1 {[%clk 0:01:55.6]} 17... axb6 {[%clk 0:01:49]} 18.
Nd4 {[%clk 0:01:56]} 18... fxe5 {[%clk 0:01:44.3]} 19. Rxe5 {[%clk 0:01:53.1]}
19... Bc5 {[%clk 0:01:11.6]} 20. Nb3 {[%clk 0:01:50.1]} 20... Bc2 {[%clk
0:01:11.9]} 21. Nxc5 {[%clk 0:01:48.1]} 21... Bxd1 {[%clk 0:01:11.1]} 22. Ncxe6
{[%clk 0:01:49.6]} 22... Rf6 {[%clk 0:01:09.3]} 23. Nxc6 {[%clk 0:01:48.8]}
23... Bg4 {[%clk 0:01:03.6]} 24. f5 {[%clk 0:01:50]} 24... Bxf5 {[%clk
0:00:56.5]} 25. Ne7+ {[%clk 0:01:44.5]} 25... Kf7 {[%clk 0:00:56.8]} 26. Ng5+
{[%clk 0:01:45.6]} 26... Kf8 {[%clk 0:00:40.6]} 27. Nxf5 {[%clk 0:01:45.2]}
27... Kg8 {[%clk 0:00:31.1]} 28. Ne7+ {[%clk 0:01:44.9]} 28... Kf8 {[%clk
0:00:31.5]} 29. Nxh7+ {[%clk 0:01:45]} 29... Kf7 {[%clk 0:00:31.1]} 30. Nxf6
{[%clk 0:01:46.2]} 30... gxf6 {[%clk 0:00:31.8]} 31. Re3 {[%clk 0:01:47.3]}
31... d4 {[%clk 0:00:31.3]} 32. cxd4 {[%clk 0:01:49.2]} 1-0

[Event "*** Titled Tuesday Blitz"]
[Site "Chess.com"]
[Date "2018.09.04"]
[Round "1"]
[White "mjray79"]
[Black "Gr3egor"]
[Result "0-1"]
[WhiteElo "2053"]
[BlackElo "2482"]
[TimeControl "180+2"]
[EndTime "13:41:29 PDT"]
[Termination "Gr3egor won by resignation"]

1. d4 {[%clk 0:03:00.2]} 1... Nf6 {[%clk 0:03:00.9]} 2. c4 {[%clk 0:03:00.5]}
2... e6 {[%clk 0:03:02.1]} 3. g3 {[%clk 0:03:00.9]} 3... c5 {[%clk 0:03:03.1]}
4. d5 {[%clk 0:03:00.9]} 4... exd5 {[%clk 0:03:05]} 5. cxd5 {[%clk 0:03:01.6]}
5... d6 {[%clk 0:03:06.5]} 6. Nc3 {[%clk 0:03:00.9]} 6... g6 {[%clk 0:03:07.6]}
7. Bg2 {[%clk 0:03:01.6]} 7... Bg7 {[%clk 0:03:09.5]} 8. Nf3 {[%clk 0:03:00.2]}
8... O-O {[%clk 0:03:10.7]} 9. O-O {[%clk 0:03:00.7]} 9... Re8 {[%clk
0:03:11.7]} 10. Re1 {[%clk 0:03:00]} 10... a6 {[%clk 0:03:01.6]} 11. a4 {[%clk
0:02:59.8]} 11... Nbd7 {[%clk 0:03:02.9]} 12. e4 {[%clk 0:02:58.6]} 12... Nh5
{[%clk 0:03:02]} 13. Bg5 {[%clk 0:02:56.8]} 13... Qb6 {[%clk 0:02:59.6]} 14. Qc2
{[%clk 0:02:52]} 14... Ne5 {[%clk 0:03:00.2]} 15. Rab1 {[%clk 0:02:38.1]} 15...
Bg4 {[%clk 0:02:54.1]} 16. Nxe5 {[%clk 0:02:37.5]} 16... Bxe5 {[%clk 0:02:56]}
17. Be3 {[%clk 0:02:35.6]} 17... Bd4 {[%clk 0:02:38.3]} 18. Bxd4 {[%clk
0:02:16.5]} 18... cxd4 {[%clk 0:02:40.2]} 19. Ne2 {[%clk 0:02:16.6]} 19... Rac8
{[%clk 0:02:41.2]} 20. Qd3 {[%clk 0:02:15.1]} 20... Qb4 {[%clk 0:02:42.6]} 21.
Qxd4 {[%clk 0:02:06.8]} 21... Rc4 {[%clk 0:02:41.4]} 22. Qd3 {[%clk 0:02:02.2]}
22... Rec8 {[%clk 0:02:29.7]} 23. b3 {[%clk 0:02:02.2]} 23... Rc2 {[%clk
0:02:27.8]} 24. Nd4 {[%clk 0:01:58.1]} 24... Rd2 {[%clk 0:02:26.5]} 25. Nc6
{[%clk 0:01:27.9]} 25... bxc6 {[%clk 0:02:23.4]} 26. Qxa6 {[%clk 0:01:27.9]}
26... c5 {[%clk 0:02:07.5]} 27. Bf3 {[%clk 0:01:19.1]} 27... Qd4 {[%clk
0:02:01.5]} 28. Re3 {[%clk 0:01:07.4]} 28... Bh3 {[%clk 0:01:42]} 29. g4 {[%clk
0:01:07.7]} 29... Rb8 {[%clk 0:01:24.3]} 30. gxh5 {[%clk 0:01:07.1]} 30... c4
{[%clk 0:01:25.7]} 31. Qxd6 {[%clk 0:01:03.8]} 31... Rxb3 {[%clk 0:01:24.3]} 32.
Rexb3 {[%clk 0:00:44.6]} 32... Qxf2+ {[%clk 0:01:23.6]} 33. Kh1 {[%clk
0:00:41.8]} 33... Bg2+ {[%clk 0:01:25.1]} 0-1

[Event "*** Titled Tuesday Blitz"]
[Site "Chess.com"]
[Date "2018.09.04"]
[Round "1"]
[White "Rashad_Zeynalli"]
[Black "yosephtaher"]
[Result "0-1"]
[WhiteElo "2338"]
[BlackElo "2688"]
[TimeControl "180+2"]
[EndTime "13:41:32 PDT"]
[Termination "yosephtaher won by resignation"]

1. d4 {[%clk 0:02:57]} 1... Nf6 {[%clk 0:03:00.5]} 2. Bf4 {[%clk 0:02:57.7]}
2... g6 {[%clk 0:03:02]} 3. e3 {[%clk 0:02:58.6]} 3... Bg7 {[%clk 0:03:02.9]} 4.
Nf3 {[%clk 0:03:00.2]} 4... O-O {[%clk 0:03:04.5]} 5. Be2 {[%clk 0:03:01.7]}
5... d6 {[%clk 0:03:06.1]} 6. O-O {[%clk 0:03:03.2]} 6... Nbd7 {[%clk
0:03:07.7]} 7. h3 {[%clk 0:03:04]} 7... b6 {[%clk 0:03:09.1]} 8. a4 {[%clk
0:03:04.1]} 8... a6 {[%clk 0:03:09.8]} 9. Bh2 {[%clk 0:02:57.8]} 9... Bb7 {[%clk
0:03:10.9]} 10. Nbd2 {[%clk 0:02:58.6]} 10... Re8 {[%clk 0:03:12]} 11. Nc4
{[%clk 0:02:49.2]} 11... e6 {[%clk 0:03:10.8]} 12. b4 {[%clk 0:02:44.5]} 12...
Qe7 {[%clk 0:03:10.5]} 13. c3 {[%clk 0:02:41.8]} 13... Ne4 {[%clk 0:03:10.6]}
14. Qc2 {[%clk 0:02:38.6]} 14... e5 {[%clk 0:03:11.9]} 15. Rfd1 {[%clk
0:02:24.2]} 15... Rad8 {[%clk 0:03:07]} 16. d5 {[%clk 0:02:14.2]} 16... f5
{[%clk 0:03:06.2]} 17. a5 {[%clk 0:02:14.8]} 17... b5 {[%clk 0:03:05.2]} 18. Nb2
{[%clk 0:02:06.3]} 18... Ndf6 {[%clk 0:02:52.4]} 19. c4 {[%clk 0:02:06.2]} 19...
Kh8 {[%clk 0:02:48.9]} 20. cxb5 {[%clk 0:01:56.7]} 20... Nxd5 {[%clk 0:02:46.3]}
21. Qb3 {[%clk 0:01:11.6]} 21... Ndc3 {[%clk 0:02:34.3]} 22. Bf1 {[%clk
0:01:09.2]} 22... Nxb5 {[%clk 0:02:32.6]} 23. Rac1 {[%clk 0:01:04.5]} 23... c6
{[%clk 0:02:21.8]} 24. Na4 {[%clk 0:01:03.9]} 24... h6 {[%clk 0:02:18.8]} 25.
Nb6 {[%clk 0:01:04.2]} 25... d5 {[%clk 0:02:07.8]} 26. Bxb5 {[%clk 0:01:01.9]}
26... axb5 {[%clk 0:02:08]} 27. Ra1 {[%clk 0:00:59.5]} 27... Nd6 {[%clk
0:02:01.8]} 28. a6 {[%clk 0:00:48.8]} 28... Ba8 {[%clk 0:02:03]} 29. a7 {[%clk
0:00:48.9]} 29... Nc4 {[%clk 0:02:03.5]} 30. Nxc4 {[%clk 0:00:40.9]} 30... bxc4
{[%clk 0:02:04.8]} 31. Qb2 {[%clk 0:00:37.8]} 31... Rd7 {[%clk 0:02:02.3]} 32.
b5 {[%clk 0:00:37.1]} 32... e4 {[%clk 0:01:58]} 33. Nd4 {[%clk 0:00:32.7]} 33...
c5 {[%clk 0:01:58.5]} 34. Nc6 {[%clk 0:00:18.8]} 34... Bxb2 {[%clk 0:01:57.1]}
35. Nxe7 {[%clk 0:00:19.7]} 35... Rexe7 {[%clk 0:01:58.2]} 36. Rab1 {[%clk
0:00:19.4]} 36... c3 {[%clk 0:01:58.9]} 37. b6 {[%clk 0:00:20]} 37... c2 {[%clk
0:02:00]} 0-1

[Event "*** Titled Tuesday Blitz"]
[Site "Chess.com"]
[Date "2018.09.04"]
[Round "1"]
[White "danyuffa"]
[Black "volcanoexplorer"]
[Result "1-0"]
[WhiteElo "2666"]
[BlackElo "2330"]
[TimeControl "180+2"]
[EndTime "13:41:39 PDT"]
[Termination "danyuffa won by resignation"]

1. d4 {[%clk 0:02:44]} 1... Nf6 {[%clk 0:03:00.4]} 2. c4 {[%clk 0:02:45.1]} 2...
e6 {[%clk 0:03:00.7]} 3. g3 {[%clk 0:02:45.8]} 3... d5 {[%clk 0:02:59.6]} 4. Bg2
{[%clk 0:02:47.1]} 4... Bb4+ {[%clk 0:02:57.8]} 5. Bd2 {[%clk 0:02:47.3]} 5...
Bd6 {[%clk 0:02:58.9]} 6. Nc3 {[%clk 0:02:48.5]} 6... c6 {[%clk 0:03:00]} 7. e4
{[%clk 0:02:48.6]} 7... dxe4 {[%clk 0:02:58.7]} 8. Nxe4 {[%clk 0:02:50.5]} 8...
Nxe4 {[%clk 0:02:59.9]} 9. Bxe4 {[%clk 0:02:52.4]} 9... Nd7 {[%clk 0:03:01.5]}
10. Nf3 {[%clk 0:02:52.7]} 10... Nf6 {[%clk 0:03:01.2]} 11. Bc2 {[%clk
0:02:54.1]} 11... b6 {[%clk 0:02:57.2]} 12. Qe2 {[%clk 0:02:55.1]} 12... Bb7
{[%clk 0:02:57.9]} 13. O-O-O {[%clk 0:02:55.6]} 13... Qc7 {[%clk 0:02:50.1]} 14.
Ne5 {[%clk 0:02:33.7]} 14... O-O-O {[%clk 0:02:37.8]} 15. Rhe1 {[%clk
0:02:31.7]} 15... c5 {[%clk 0:02:05.6]} 16. dxc5 {[%clk 0:02:31.8]} 16... Bxe5
{[%clk 0:02:03.6]} 17. Qxe5 {[%clk 0:02:32.1]} 17... Qxe5 {[%clk 0:01:56]} 18.
Rxe5 {[%clk 0:02:34]} 18... Nd7 {[%clk 0:01:57.6]} 19. Rg5 {[%clk 0:02:30]}
19... Nxc5 {[%clk 0:01:47.6]} 20. Rxg7 {[%clk 0:02:30.4]} 20... Bf3 {[%clk
0:01:39.3]} 21. Re1 {[%clk 0:02:31.3]} 21... Rd7 {[%clk 0:01:39.7]} 22. Rxh7
{[%clk 0:02:24.2]} 22... Rhd8 {[%clk 0:01:27.3]} 23. Bg5 {[%clk 0:02:20.2]}
23... Rg8 {[%clk 0:01:20.5]} 24. Be3 {[%clk 0:02:20.1]} 24... Ne4 {[%clk
0:01:20.3]} 25. Bd1 {[%clk 0:02:13.6]} 25... Nf6 {[%clk 0:00:59.4]} 26. Rh4
{[%clk 0:02:07.9]} 26... Be4 {[%clk 0:00:53.2]} 27. Rf4 {[%clk 0:02:08.5]} 27...
Rg6 {[%clk 0:00:49.7]} 28. h4 {[%clk 0:02:07.9]} 28... Bf5 {[%clk 0:00:50.8]}
29. h5 {[%clk 0:02:07.3]} 29... Rg8 {[%clk 0:00:52.1]} 30. h6 {[%clk 0:02:05.8]}
30... Rc7 {[%clk 0:00:40.9]} 31. b3 {[%clk 0:02:06.3]} 31... Nd5 {[%clk
0:00:41.9]} 32. Rd4 {[%clk 0:02:04]} 32... Nxe3 {[%clk 0:00:42.9]} 33. Rxe3
{[%clk 0:02:05.3]} 33... Rh8 {[%clk 0:00:44.5]} 34. Rh4 {[%clk 0:02:06.5]} 34...
Rd7 {[%clk 0:00:43.4]} 35. g4 {[%clk 0:02:07.6]} 35... Bg6 {[%clk 0:00:43.8]}
36. Bc2 {[%clk 0:02:09]} 36... f5 {[%clk 0:00:40]} 37. g5 {[%clk 0:02:10.4]}
37... Rhd8 {[%clk 0:00:38.9]} 38. Rxe6 {[%clk 0:02:11.2]} 38... Bf7 {[%clk
0:00:37.1]} 39. Rf6 {[%clk 0:02:09.5]} 39... Re7 {[%clk 0:00:32.6]} 40. Bxf5+
{[%clk 0:02:08.7]} 40... Kb8 {[%clk 0:00:34.1]} 41. Re4 {[%clk 0:02:10.4]} 41...
Rxe4 {[%clk 0:00:33]} 42. Bxe4 {[%clk 0:02:12.3]} 42... Bh5 {[%clk 0:00:34.7]}
43. h7 {[%clk 0:02:12.7]} 1-0